bitfinex/quotes_BTCUSD_20220101
["timestamp","ask_amount","ask_price","bid_price","bid_amount"]
[1641005272583,0.01077388,46829.0,46828.0,0.56995412]
[1641005273635,0.01077388,46829.0,46828.0,0.59193041]
[1641005273835,0.01077388,46829.0,46828.0,0.57113624]
[1641005274636,0.01077388,46829.0,46828.0,0.58954593]
[1641005275040,0.01077388,46829.0,46828.0,0.54915995]
[1641005275637,0.01077388,46829.0,46828.0,0.56757693]
[1641005277191,0.01077388,46829.0,46828.0,0.58687871]
[1641005277990,0.01077388,46829.0,46828.0,0.54915995]
[1641005278192,0.01077388,46829.0,46828.0,0.56757793]
[1641005278592,0.00216388,46829.0,46828.0,0.56757793]
[1641005278790,0.00216388,46829.0,46828.0,0.56904083]
[1641005278990,0.01077388,46829.0,46828.0,0.56904083]
[1641005279692,0.01077388,46829.0,46828.0,0.5902869]
[1641005279891,0.01077388,46829.0,46828.0,0.57040602]
[1641005280491,0.01077388,46829.0,46828.0,0.23305402]
[1641005280746,0.01077388,46829.0,46828.0,0.25410198]
[1641005280939,0.01077388,46829.0,46828.0,0.23285591]
[1641005281941,0.01077388,46829.0,46828.0,0.21180795]
[1641005285190,0.30435039,46829.0,46828.0,0.21180795]
[1641005285393,0.01077388,46829.0,46828.0,0.21180795]
[1641005285593,0.11077387,46829.0,46828.0,0.21180795]
[1641005285796,0.30551704,46829.0,46828.0,0.21180795]
[1641005285992,0.35551704,46829.0,46828.0,0.21180795]
[1641005286192,0.64853188,46829.0,46828.0,0.21180795]
[1641005287391,0.70727388,46829.0,46828.0,0.21180795]
[1641005287591,1.43531459,46829.0,46828.0,0.21180795]
[1641005290028,1.09229975,46829.0,46828.0,0.21180795]
[1641005290430,0.79755659,46829.0,46828.0,0.21180795]
[1641005290829,0.06951588,46829.0,46828.0,0.21180795]
[1641005291029,0.01077388,46829.0,46828.0,0.21180795]
[1641005292679,0.28110794,46829.0,46828.0,0.21180795]
[1641005294481,0.76219312,46829.0,46828.0,0.21180795]
[1641005294682,0.87093512,46829.0,46828.0,0.21180795]
[1641005294881,0.92214477,46829.0,46828.0,0.21180795]
[1641005295280,0.97973124,46829.0,46828.0,0.21180795]
[1641005295480,0.71341824,46829.0,46828.0,0.21180795]
[1641005299476,0.53973124,46829.0,46828.0,0.21180795]
[1641005311169,0.63973124,46829.0,46828.0,0.21180795]
[1641005312571,0.59864606,46829.0,46828.0,0.21180795]
[1641005312771,0.64641366,46829.0,46828.0,0.21180795]
[1641005312972,0.59864606,46829.0,46828.0,0.21180795]
[1641005313372,0.64164063,46829.0,46828.0,0.21180795]
[1641005313572,0.59864606,46829.0,46828.0,0.21180795]
[1641005314174,0.64253317,46829.0,46828.0,0.21180795]
[1641005314374,0.74253316,46829.0,46828.0,0.21180795]
[1641005314588,0.64253317,46829.0,46828.0,0.21180795]
[1641005314791,0.319702,46829.0,46828.0,0.21180795]
[1641005315188,0.219702,46829.0,46828.0,0.21180795]
[1641005315391,0.319702,46829.0,46828.0,0.21180795]
[1641005315589,0.35395125,46829.0,46828.0,0.21180795]
[1641005315790,0.319702,46829.0,46828.0,0.21180795]
[1641005316989,0.36822103,46829.0,46828.0,0.21180795]
[1641005317192,0.64885683,46829.0,46828.0,0.21180795]
[1641005317792,0.65746683,46829.0,46828.0,0.21180795]
[1641005317993,0.66607683,46829.0,46828.0,0.21180795]
[1641005320440,0.81011533,46829.0,46828.0,0.21180795]
[1641005321242,0.52947953,46829.0,46828.0,0.21180795]
[1641005321642,0.4809605,46829.0,46828.0,0.21180795]
[1641005321844,0.52796962,46829.0,46828.0,0.21180795]
[1641005322083,0.62359476,46829.0,46828.0,0.21180795]
[1641005322383,0.89873639,46829.0,46828.0,0.21180795]
[1641005322583,0.7987364,46829.0,46828.0,0.21180795]
[1641005323284,0.65610213,46829.0,46828.0,0.21180795]
[1641005323483,0.69314005,46829.0,46828.0,0.21180795]
[1641005324388,0.3809605,46829.0,46828.0,0.21180795]
[1641005325587,0.7571029,46829.0,46828.0,0.21180795]
[1641005328046,0.7484929,46829.0,46828.0,0.21180795]
[1641005328247,0.7398829,46829.0,46828.0,0.21180795]
[1641005328449,0.87541163,46829.0,46828.0,0.21180795]
[1641005329047,1.83212185,46829.0,46828.0,0.21180795]
[1641005329251,1.74934186,46829.0,46828.0,0.21180795]
[1641005329497,1.60530336,46829.0,46828.0,0.21180795]
[1641005330701,0.51648924,46829.0,46828.0,0.21180795]
[1641005330899,0.78684125,46829.0,46828.0,0.21180795]
[1641005331301,0.51648924,46829.0,46828.0,0.21180795]
[1641005333643,0.45890277,46829.0,46828.0,0.21180795]
[1641005333843,0.45769312,46829.0,46828.0,0.21180795]
[1641005334645,0.51527959,46829.0,46828.0,0.21180795]
[1641005338387,0.41527959,46829.0,46828.0,0.21180795]
[1641005339788,0.37975085,46829.0,46828.0,0.21180795]
[1641005343243,0.64684031,46829.0,46828.0,0.21180795]
[1641005345103,0.74684031,46829.0,46828.0,0.21180795]
[1641005345506,1.70355053,46829.0,46828.0,0.21180795]
[1641005349140,0.74684031,46829.0,46828.0,0.21180795]
[1641005349741,1.70355053,46829.0,46828.0,0.21180795]
[1641005350447,0.74684031,46829.0,46828.0,0.21180795]
[1641005353609,0.60280181,46829.0,46828.0,0.21180795]
[1641005353809,0.33571235,46829.0,46828.0,0.21180795]
[1641005354009,0.23571235,46829.0,46828.0,0.21180795]
[1641005354210,0.33571235,46829.0,46828.0,0.21180795]
[1641005354410,0.60395529,46829.0,46828.0,0.21180795]
[1641005355514,1.53395529,46829.0,46828.0,0.20680795]
[1641005355750,0.98395529,46829.0,46828.0,0.20680795]
[1641005355943,1.10325042,46829.0,46828.0,0.20680795]
[1641005356143,0.72325042,46829.0,46828.0,0.20680795]
[1641005357944,1.69432562,46829.0,46828.0,0.20680795]
[1641005358144,0.72325042,46829.0,46828.0,0.20680795]
[1641005358945,1.69432562,46829.0,46828.0,0.20680795]
[1641005360701,1.69432562,46829.0,46828.0,0.05103592]
[1641005360904,0.72325042,46829.0,46828.0,0.05103592]
[1641005363440,1.13169645,46829.0,46828.0,0.05103592]
[1641005364037,2.10291701,46829.0,46828.0,0.05103592]
[1641005365143,1.13169645,46829.0,46828.0,0.05103592]
[1641005366642,1.12669645,46829.0,46828.0,0.05103592]
[1641005369303,1.12790612,46829.0,46828.0,0.05103592]
[1641005369703,1.32790612,46829.0,46828.0,0.05103592]
[1641005375610,1.39,46828.0,46827.0,0.00119212]
[1641005375810,1.50632847,46828.0,46827.0,0.00119212]
[1641005376010,1.60632847,46828.0,46827.0,0.00119212]
[1641005376412,1.7256236,46828.0,46827.0,0.00119212]
[1641005376815,1.72684336,46828.0,46827.0,0.00119212]
[1641005377012,0.33154227,46825.0,46821.0,0.00963675]
[1641005377214,0.112161,46822.0,46821.0,0.00963675]
[1641005377412,0.212161,46822.0,46821.0,0.00963675]
[1641005377613,0.91766201,46822.0,46821.0,0.00963675]
[1641005378013,1.13695714,46822.0,46821.0,0.00963675]
[1641005378250,0.75816628,46822.0,46815.0,0.02053]
[1641005378441,0.05758647,46817.0,46815.0,0.02053]
[1641005378644,0.05758647,46816.0,46812.0,0.02834562]
[1641005378842,0.05758647,46813.0,46812.0,0.02834562]
[1641005379046,0.49342095,46813.0,46812.0,0.02834562]
[1641005379242,0.54342095,46813.0,46812.0,0.02834562]
[1641005379644,0.59342095,46813.0,46812.0,0.02834562]
[1641005380044,0.64683995,46813.0,46812.0,0.02834562]
[1641005380245,0.70558195,46813.0,46812.0,0.01]
[1641005381043,0.70558195,46813.0,46812.0,0.01187604]
[1641005383001,0.70558195,46813.0,46812.0,0.22187604]
[1641005383202,0.64683995,46813.0,46812.0,0.22187604]
[1641005383802,0.70558195,46813.0,46812.0,0.22187604]
[1641005385005,0.212161,46813.0,46812.0,0.22187604]
[1641005386753,0.153419,46813.0,46812.0,0.22187604]
[1641005389256,0.103419,46813.0,46812.0,0.22187604]
[1641005389512,0.72831376,46815.0,46812.0,0.22187604]
[1641005390115,0.72831376,46819.0,46812.0,0.22187604]
[1641005390317,0.72831376,46819.0,46815.0,0.32391952]
[1641005390714,0.053409,46818.0,46815.0,0.32391952]
[1641005390914,0.72831376,46819.0,46815.0,0.32391952]
[1641005390915,0.77831376,46819.0,46815.0,0.32391952]
[1641005391413,0.05,46819.0,46815.0,0.32391952]
[1641005391613,0.72831376,46820.0,46815.0,0.34463474]
[1641005391614,0.77831376,46820.0,46815.0,0.34463474]
[1641005391815,0.83172076,46820.0,46815.0,0.34463474]
[1641005392618,0.83172076,46820.0,46815.0,0.36433322]
[1641005392816,0.83172076,46820.0,46815.0,0.343618]
[1641005393455,0.053407,46819.0,46815.0,0.343618]
[1641005394056,0.053407,46819.0,46815.0,0.01969848]
[1641005394256,0.053407,46819.0,46815.0,0.03919239]
[1641005394558,0.78172076,46819.0,46815.0,0.04090055]
[1641005395059,0.78172076,46819.0,46814.0,0.27939431]
[1641005395556,0.78172076,46819.0,46814.0,0.30126491]
[1641005396757,0.78172076,46819.0,46814.0,0.32002367]
[1641005396999,0.78172076,46819.0,46814.0,0.29815307]
[1641005397604,0.78172076,46819.0,46814.0,0.31639201]
[1641005397801,0.78172076,46819.0,46814.0,0.29763325]
[1641005398802,0.78172076,46819.0,46814.0,0.27939431]
[1641005399004,0.78172076,46819.0,46812.0,0.24238568]
[1641005399805,0.78172076,46819.0,46812.0,0.22187604]
[1641005400852,0.72831376,46818.0,46812.0,0.22187604]
[1641005401050,0.053412,46815.0,46812.0,0.22187604]
[1641005401549,0.053412,46815.0,46812.0,0.22154996]
[1641005402349,0.05341,46817.0,46812.0,0.22154996]
[1641005403953,0.10341,46817.0,46812.0,0.22154996]
[1641005404151,0.05341,46817.0,46812.0,0.22154996]
[1641005406409,0.062019,46817.0,46812.0,0.22154996]
[1641005406608,0.112019,46817.0,46812.0,0.22154996]
[1641005406809,0.05341,46816.0,46812.0,0.22154996]
[1641005409250,0.112018,46817.0,46812.0,0.22154996]
[1641005409452,0.73692276,46817.0,46812.0,0.22154996]
[1641005409952,0.008609,46817.0,46812.0,0.22154996]
[1641005411350,0.008609,46817.0,46813.0,0.337352]
[1641005411551,0.008609,46817.0,46812.0,0.22154996]
[1641005413996,0.79033276,46817.0,46812.0,0.22154996]
[1641005414196,0.72831376,46815.0,46812.0,0.22154996]
[1641005414397,0.32690408,46814.0,46812.0,0.22154996]
[1641005414695,0.27059105,46813.0,46812.0,0.22154996]
[1641005415498,0.99890481,46813.0,46812.0,0.22154996]
[1641005415952,1.05764681,46813.0,46812.0,0.22154996]
[1641005416152,0.90844139,46813.0,46812.0,0.22154996]
[1641005416453,1.00844139,46813.0,46812.0,0.22154996]
[1641005417252,0.158742,46813.0,46812.0,0.22154996]
[1641005417452,0.37942094,46813.0,46812.0,0.22154996]
[1641005417653,0.32067894,46813.0,46812.0,0.22154996]
[1641005419055,0.95006284,46813.0,46812.0,0.22154996]
[1641005419492,0.23409766,46813.0,46812.0,0.22154996]
[1641005420898,0.23409766,46813.0,46812.0,0.06802326]
[1641005420899,1.69205146,46813.0,46812.0,0.06802326]
[1641005421097,1.85206191,46813.0,46812.0,0.06802326]
[1641005421300,1.40001045,46813.0,46812.0,0.06980974]
[1641005421495,1.40001045,46813.0,46812.0,0.0704095]
[1641005421895,1.45759692,46813.0,46812.0,0.0704095]
[1641005422096,1.61788892,46813.0,46812.0,0.0704095]
[1641005422694,1.81788892,46813.0,46812.0,0.0704095]
[1641005423948,2.11720006,46813.0,46812.0,0.0704095]
[1641005427307,2.11720006,46813.0,46812.0,0.0713467]
[1641005427709,2.11720006,46813.0,46812.0,0.06424549]
[1641005431955,2.11720006,46813.0,46803.0,0.00011]
[1641005431956,0.00120749,46807.0,46803.0,0.00011]
[1641005432160,0.11632847,46804.0,46803.0,0.00011]
[1641005432355,0.41103908,46804.0,46803.0,0.00011]
[1641005432558,0.51103908,46804.0,46803.0,0.00011]
[1641005432756,0.51103908,46804.0,46803.0,0.00130745]
[1641005432956,1.44103908,46804.0,46803.0,0.00130745]
[1641005433457,2.16710864,46804.0,46803.0,0.00130745]
[1641005433660,2.36710864,46804.0,46803.0,0.00130745]
[1641005434165,1.43710864,46804.0,46803.0,0.21130745]
[1641005436128,1.23710864,46804.0,46803.0,0.21130745]
[1641005436730,0.94239803,46804.0,46803.0,0.21130745]
[1641005436926,0.99239803,46804.0,46803.0,0.01130745]
[1641005437127,1.04949289,46804.0,46803.0,0.01130745]
[1641005437329,0.92868336,46804.0,46803.0,0.01130745]
[1641005437527,0.32342333,46804.0,46803.0,0.01130745]
[1641005437927,0.22342333,46804.0,46803.0,0.01130745]
[1641005438127,0.32342333,46804.0,46803.0,0.01130745]
[1641005439155,0.22342333,46804.0,46803.0,0.01130745]
[1641005439360,0.32342333,46804.0,46803.0,0.01130745]
[1641005439757,0.68227989,46804.0,46803.0,0.01130745]
[1641005439956,2.07356384,46804.0,46803.0,0.01119745]
[1641005440156,0.88356384,46804.0,46803.0,0.01119745]
[1641005440857,1.25620798,46804.0,46803.0,0.01119745]
[1641005441258,2.38761849,46804.0,46803.0,0.01119745]
[1641005442100,2.38776163,46804.0,46803.0,0.01119745]
[1641005443305,1.41667812,46804.0,46803.0,0.01119745]
[1641005444508,1.41667812,46804.0,46802.0,0.00152227]
[1641005444705,0.60378774,46803.0,46802.0,0.00152227]
[1641005445205,0.70378774,46803.0,46802.0,0.00152227]
[1641005445406,1.0626443,46803.0,46802.0,0.00152227]
[1641005445850,0.77518503,46803.0,46802.0,0.00152227]
[1641005446454,1.54394888,46803.0,46802.0,0.00152227]
[1641005446851,0.57518503,46803.0,46802.0,0.00152227]
[1641005448552,0.82097268,46803.0,46802.0,0.00152227]
[1641005449610,0.21632847,46803.0,46802.0,0.00152227]
[1641005449997,0.72099845,46803.0,46802.0,0.00152227]
[1641005450398,0.82099845,46803.0,46802.0,0.00152227]
[1641005450799,0.72099845,46803.0,46802.0,0.00152227]
[1641005451200,0.11632847,46803.0,46802.0,0.00152227]
[1641005451401,0.7209284,46803.0,46802.0,0.00152227]
[1641005451601,0.988791,46803.0,46802.0,0.00152227]
[1641005452305,1.288791,46803.0,46802.0,0.00152227]
[1641005452602,0.68433338,46803.0,46802.0,0.00152227]
[1641005454861,0.68433338,46803.0,46802.0,0.21152227]
[1641005456161,0.68433338,46803.0,46802.0,0.00152227]
[1641005458601,0.21647078,46803.0,46802.0,0.00152227]
[1641005459002,0.11647078,46803.0,46802.0,0.00152227]
[1641005459306,0.05888431,46803.0,46802.0,0.00152227]
[1641005460404,0.00014231,46803.0,46802.0,0.00152227]
[1641005461759,0.00014231,46803.0,46802.0,0.77887427]
[1641005461957,0.00014231,46803.0,46802.0,0.33887427]
[1641005463360,0.00014231,46803.0,46802.0,0.00152227]
[1641005464259,0.00014231,46803.0,46802.0,0.02161439]
[1641005465423,0.00014231,46803.0,46802.0,0.00152227]
[1641005467212,0.00014231,46803.0,46802.0,0.74887427]
[1641005467412,0.00014231,46803.0,46802.0,0.33887427]
[1641005470267,0.00014231,46803.0,46802.0,1.037326]
[1641005470466,0.00014231,46803.0,46802.0,1.7127697]
[1641005470669,0.00014231,46803.0,46802.0,1.137326]
[1641005471466,0.00014231,46803.0,46802.0,1.447326]
[1641005472302,0.00014231,46803.0,46802.0,1.46900827]
[1641005473306,0.00014231,46803.0,46802.0,1.48852208]
[1641005473603,0.00014231,46803.0,46802.0,1.46683981]
[1641005474304,0.00014231,46803.0,46802.0,1.58853901]
[1641005474504,0.00014231,46803.0,46802.0,1.57051364]
[1641005474904,0.00014231,46803.0,46802.0,1.47051364]
[1641005475403,0.00014231,46803.0,46802.0,1.49204794]
[1641005475606,0.00014231,46803.0,46802.0,1.47034874]
[1641005475853,0.00014231,46803.0,46802.0,1.57034874]
[1641005476450,0.00014231,46803.0,46802.0,1.64112865]
[1641005476650,0.00014231,46803.0,46802.0,1.56959435]
[1641005476951,0.00014231,46803.0,46802.0,1.46959435]
[1641005477352,0.00014231,46803.0,46802.0,1.58911092]
[1641005477650,0.00014231,46803.0,46802.0,1.56833101]
[1641005478052,0.00014231,46803.0,46802.0,1.46833101]
[1641005478249,0.00014231,46803.0,46802.0,1.48793124]
[1641005478453,0.00014231,46803.0,46802.0,1.46841467]
[1641005478851,0.00014231,46803.0,46802.0,1.46961214]
[1641005479353,0.00014231,46803.0,46802.0,1.4888122]
[1641005479601,0.00014231,46803.0,46802.0,1.46921197]
[1641005480403,0.00014231,46803.0,46802.0,1.49021804]
[1641005480601,0.00014231,46803.0,46802.0,1.47101798]
[1641005481006,0.00014231,46803.0,46802.0,1.52101798]
[1641005481204,0.00014231,46803.0,46802.0,1.62101798]
[1641005481404,0.00014231,46803.0,46802.0,1.79081464]
[1641005482305,0.00014231,46803.0,46802.0,1.90159561]
[1641005482504,0.00014231,46803.0,46802.0,1.88079288]
[1641005483351,0.00014231,46803.0,46802.0,1.90168568]
[1641005483555,0.00014231,46803.0,46802.0,1.88331824]
[1641005484351,0.00014231,46803.0,46802.0,1.90436199]
[1641005484553,0.00014231,46803.0,46802.0,1.88346919]
[1641005484754,0.00014231,46803.0,46802.0,1.71346919]
[1641005485354,0.00014231,46803.0,46802.0,1.73183618]
[1641005486857,0.00842844,46817.0,46803.0,1.18]
[1641005487132,0.00842844,46817.0,46811.0,0.053404]
[1641005487732,0.00842844,46817.0,46812.0,0.337326]
[1641005488133,0.00842844,46817.0,46816.0,0.38713094]
[1641005488332,0.00842844,46817.0,46816.0,0.72445694]
[1641005488938,0.00842844,46817.0,46816.0,2.62903148]
[1641005489332,0.00842844,46817.0,46816.0,2.65044843]
[1641005489533,0.00842844,46817.0,46816.0,2.70384743]
[1641005489934,0.00842844,46817.0,46816.0,2.65044843]
[1641005490534,0.00842844,46817.0,46816.0,2.65002358]
[1641005491364,0.00842844,46817.0,46816.0,2.67006521]
[1641005491562,0.00842844,46817.0,46816.0,2.64907311]
[1641005492363,0.00842844,46817.0,46816.0,2.66798192]
[1641005492563,0.00842844,46817.0,46816.0,2.64794029]
[1641005493262,0.00842844,46817.0,46816.0,2.66727134]
[1641005493462,0.00842844,46817.0,46816.0,2.64836253]
[1641005493865,0.00856943,46817.0,46816.0,2.64836253]
[1641005494262,0.00856943,46817.0,46816.0,2.28123411]
[1641005494508,0.00856943,46817.0,46816.0,2.26190306]
[1641005495409,0.00856943,46817.0,46816.0,2.28136878]
[1641005495608,0.00856943,46817.0,46816.0,2.26136626]
[1641005495808,0.00856943,46817.0,46816.0,2.47136626]
[1641005496412,0.00856943,46817.0,46816.0,2.4933065]
[1641005496610,0.00856943,46817.0,46816.0,2.47384078]
[1641005497409,0.00856943,46817.0,46816.0,2.49387989]
[1641005497607,0.00856943,46817.0,46816.0,2.47193965]
[1641005498291,0.00856943,46817.0,46816.0,2.49044644]
[1641005498481,0.00856943,46817.0,46816.0,2.47040733]
[1641005499280,0.00856943,46817.0,46816.0,2.15257672]
[1641005499482,0.00856943,46817.0,46816.0,2.47139593]
[1641005500381,0.00856943,46817.0,46816.0,2.49430297]
[1641005500581,0.00856943,46817.0,46816.0,2.47480758]
[1641005501588,0.00856943,46817.0,46816.0,2.47441708]
[1641005502409,0.00856943,46817.0,46816.0,2.15583863]
[1641005503208,0.00856943,46817.0,46816.0,2.11606385]
[1641005503411,0.00856943,46817.0,46816.0,2.13524518]
[1641005503613,0.00856943,46817.0,46816.0,2.47257118]
[1641005503812,0.00966861,46824.0,46817.0,0.337326]
[1641005504012,0.00966861,46824.0,46820.0,0.053393]
[1641005504217,0.0002,46828.0,46821.0,0.337326]
[1641005504415,0.0002,46828.0,46822.0,0.24961708]
[1641005504713,0.0002,46828.0,46824.0,0.43751169]
[1641005504911,0.0002,46828.0,46825.0,0.337326]
[1641005505111,0.01661017,46827.0,46825.0,0.337326]
[1641005505311,0.00861,46827.0,46825.0,0.337326]
[1641005505770,0.00861,46827.0,46825.0,0.33881591]
[1641005506363,0.00861,46827.0,46825.0,0.36029087]
[1641005507368,0.00861,46827.0,46825.0,0.37873902]
[1641005507763,0.00861,46827.0,46825.0,0.33881591]
[1641005508363,0.00861,46827.0,46825.0,0.35684257]
[1641005508765,0.01589885,46828.0,46826.0,0.2637236]
[1641005508966,0.01589885,46828.0,46827.0,0.337326]
[1641005509721,0.01589885,46828.0,46827.0,0.60858874]
[1641005510121,0.02450885,46828.0,46827.0,0.60978557]
[1641005510321,0.01603,46828.0,46827.0,0.60978557]
[1641005510521,0.01603,46828.0,46827.0,0.62927448]
[1641005511522,0.01603,46828.0,46827.0,0.64967329]
[1641005511720,0.01603,46828.0,46827.0,0.63018438]
[1641005512322,0.01603,46828.0,46827.0,0.29285838]
[1641005512522,0.01103,46828.0,46827.0,0.31270331]
[1641005513123,0.01103,46828.0,46827.0,0.65002931]
[1641005513352,0.01103,46828.0,46827.0,0.60978557]
[1641005513554,0.01103,46828.0,46827.0,0.62820952]
[1641005513954,0.01103,46828.0,46827.0,0.29088352]
[1641005514155,0.01103,46828.0,46827.0,0.01962078]
[1641005514559,0.01103,46828.0,46827.0,0.04113353]
[1641005514758,0.01116729,46828.0,46827.0,0.02270958]
[1641005515157,0.00884729,46828.0,46827.0,0.02270958]
[1641005515658,0.00884729,46828.0,46827.0,0.00119683]
[1641005516259,0.00884729,46828.0,46827.0,0.21119683]
[1641005519723,0.00884729,46828.0,46827.0,0.54852283]
[1641005520218,0.00023729,46828.0,46827.0,0.54852283]
[1641005520622,0.00023729,46828.0,46827.0,0.81269235]
[1641005521063,0.00023729,46828.0,46827.0,0.83266091]
[1641005521460,0.00023729,46828.0,46827.0,0.85405564]
[1641005521859,0.00023729,46828.0,46827.0,0.83408708]
[1641005522460,0.00884729,46828.0,46827.0,0.85293287]
[1641005522667,0.00884729,46828.0,46827.0,0.56736862]
[1641005523064,0.00884729,46828.0,46827.0,0.82966249]
[1641005523763,0.00884729,46828.0,46827.0,0.82933327]
[1641005524618,0.00884729,46828.0,46827.0,0.85071622]
[1641005524820,0.00884729,46828.0,46827.0,0.83219965]
[1641005525620,0.00884729,46828.0,46827.0,0.85247553]
[1641005525919,0.00884729,46828.0,46827.0,0.83109258]
[1641005526525,0.00884729,46828.0,46827.0,0.85156396]
[1641005526925,0.00884729,46828.0,46827.0,0.83128808]
[1641005527523,0.00884729,46828.0,46827.0,0.85196783]
[1641005527721,0.00884729,46828.0,46827.0,0.83149645]
[1641005528661,0.00884729,46828.0,46827.0,0.8496342]
[1641005528863,0.00884729,46828.0,46827.0,0.82895445]
[1641005529663,0.00884729,46828.0,46827.0,0.84847703]
[1641005529867,0.00884729,46828.0,46827.0,0.83033928]
[1641005530663,0.00884729,46828.0,46827.0,0.85142616]
[1641005530864,0.00884729,46828.0,46827.0,0.83190358]
[1641005531665,0.00884729,46828.0,46827.0,0.85369002]
[1641005531865,0.00884729,46828.0,46827.0,0.83260314]
[1641005532711,0.00884729,46828.0,46827.0,0.85288487]
[1641005532912,0.00884729,46828.0,46827.0,0.56880456]
[1641005533714,0.00884729,46828.0,46827.0,0.58745045]
[1641005533914,0.00884729,46828.0,46827.0,0.56716872]
[1641005534813,0.00884729,46828.0,46827.0,0.56909865]
[1641005535615,0.00884729,46828.0,46827.0,0.58766151]
[1641005535858,0.00884729,46828.0,46827.0,0.56708569]
[1641005536657,0.00884729,46828.0,46827.0,0.5887788]
[1641005536856,0.00884729,46828.0,46827.0,0.57021594]
[1641005537757,0.00884729,46828.0,46827.0,0.5897756]
[1641005537959,0.00884729,46828.0,46827.0,0.54852283]
[1641005538757,0.00884729,46828.0,46827.0,0.57048973]
[1641005539808,0.00884729,46828.0,46827.0,0.85599333]
[1641005540009,0.00884729,46828.0,46827.0,0.83402643]
[1641005540610,0.00884729,46828.0,46827.0,0.57048593]
[1641005540812,0.00884729,46828.0,46827.0,0.56915665]
[1641005541709,0.00884729,46828.0,46827.0,0.58796376]
[1641005541909,0.00884729,46828.0,46827.0,0.56732994]
[1641005542511,0.00884729,46828.0,46827.0,0.84147057]
[1641005542813,0.00884729,46828.0,46827.0,0.58646897]
[1641005543010,0.00884729,46828.0,46827.0,0.56766186]
[1641005543660,0.00884729,46828.0,46827.0,0.58747973]
[1641005544062,0.00884729,46828.0,46827.0,0.5683407]
[1641005544662,0.00884729,46828.0,46827.0,0.58875756]
[1641005545465,0.00884729,46828.0,46827.0,0.54852283]
[1641005545864,0.00884729,46828.0,46827.0,0.5669401]
[1641005546664,0.00884729,46828.0,46827.0,0.83597112]
[1641005546865,0.00884729,46828.0,46827.0,0.85575772]
[1641005547106,0.00884729,46828.0,46827.0,0.83338591]
[1641005547708,0.00884729,46828.0,46827.0,0.85410627]
[1641005547908,0.00884729,46828.0,46827.0,0.56924319]
[1641005548710,0.00884729,46828.0,46827.0,0.58901446]
[1641005548908,0.00884729,46828.0,46827.0,0.5682941]
[1641005549710,0.00884729,46828.0,46827.0,0.58744669]
[1641005549910,0.00884729,46828.0,46827.0,0.56767542]
[1641005550867,0.00884729,46828.0,46827.0,0.58639896]
[1641005551066,0.00884729,46828.0,46827.0,0.83225746]
[1641005551269,0.00884729,46828.0,46827.0,0.56724637]
[1641005551867,0.00884729,46828.0,46827.0,0.58731274]
[1641005552067,0.00884729,46828.0,46827.0,0.5685892]
[1641005552867,0.00884729,46828.0,46827.0,0.5890539]
[1641005553071,0.00884729,46828.0,46827.0,0.56898753]
[1641005553669,0.00884729,46828.0,46827.0,0.83759882]
[1641005553870,0.00884729,46828.0,46827.0,0.59092297]
[1641005554069,0.00884729,46828.0,46827.0,0.83341481]
[1641005554816,0.00884729,46828.0,46827.0,0.58995695]
[1641005555021,0.00884729,46828.0,46827.0,0.56802151]
[1641005555816,0.00884729,46828.0,46827.0,0.58795485]
[1641005556020,0.00884729,46828.0,46827.0,0.56845617]
[1641005556917,0.00884729,46828.0,46827.0,0.58887255]
[1641005557217,0.00884729,46828.0,46827.0,0.56893921]
[1641005557819,0.00884729,46828.0,46827.0,0.58869081]
[1641005558019,0.00884729,46828.0,46827.0,0.56827443]
[1641005558858,0.00884729,46828.0,46827.0,0.589669]
[1641005559058,0.00884729,46828.0,46827.0,0.5699174]
[1641005559961,0.00884729,46828.0,46827.0,0.59055444]
[1641005560162,0.00884729,46828.0,46827.0,0.56915987]
[1641005561562,0.00884729,46828.0,46827.0,0.58788432]
[1641005561762,0.00884729,46828.0,46827.0,0.56724728]
[1641005562008,0.00884729,46828.0,46827.0,0.56899324]
[1641005563010,0.00884729,46828.0,46827.0,0.59089413]
[1641005563210,0.00884729,46828.0,46827.0,0.83669522]
[1641005563410,0.00884729,46828.0,46827.0,0.57042372]
[1641005564013,0.00884729,46828.0,46827.0,0.59030157]
[1641005564211,0.00884729,46828.0,46827.0,0.56840068]
[1641005564912,0.00884729,46828.0,46827.0,0.58763749]
[1641005565112,0.00884729,46828.0,46827.0,0.56775964]
[1641005566057,0.00884729,46828.0,46827.0,0.56887382]
[1641005566857,0.00884729,46828.0,46827.0,0.58908298]
[1641005567057,0.00884729,46828.0,46827.0,0.56873199]
[1641005567860,0.00884729,46828.0,46827.0,0.5900328]
[1641005568059,0.00884729,46828.0,46827.0,0.23249764]
[1641005569261,0.00884729,46828.0,46827.0,0.21119683]
[1641005574085,0.00861,46828.0,46827.0,0.21119683]
[1641005574286,0.00384729,46828.0,46827.0,0.21119683]
[1641005576890,0.0039721,46828.0,46827.0,0.21119683]
[1641005582562,0.8537157,46828.0,46827.0,0.21119683]
[1641005582763,1.1910417,46828.0,46827.0,0.21119683]
[1641005586014,0.3412981,46828.0,46827.0,0.21119683]
[1641005587019,0.0039721,46828.0,46827.0,0.21119683]
[1641005587717,0.8537157,46828.0,46827.0,0.21119683]
[1641005588379,0.0039721,46828.0,46827.0,0.21119683]
[1641005592724,0.3412981,46828.0,46827.0,0.21119683]
[1641005596970,0.3412981,46828.0,46827.0,0.21197343]
[1641005599626,0.0039721,46828.0,46827.0,0.21197343]
[1641005600827,0.0039721,46828.0,46827.0,0.26536243]
[1641005601529,0.0039721,46828.0,46827.0,0.21197343]
[1641005622911,0.73232899,46828.0,46827.0,0.21197343]
[1641005631626,0.0039721,46828.0,46827.0,0.21197343]
[1641005631829,0.73232899,46828.0,46827.0,0.21197343]
[1641005634881,0.0039721,46828.0,46827.0,0.21197343]
[1641005636483,0.0039721,46828.0,46827.0,0.21575343]
[1641005651278,0.0039721,46828.0,46827.0,0.49034152]
[1641005652529,0.0039721,46828.0,46827.0,0.51180933]
[1641005653529,0.0039721,46828.0,46827.0,0.53049449]
[1641005653729,0.0039721,46828.0,46827.0,0.50902668]
[1641005654532,0.0039721,46828.0,46827.0,0.52757789]
[1641005654730,0.0039721,46828.0,46827.0,0.50889273]
[1641005655633,0.0039721,46828.0,46827.0,0.51177496]
[1641005655868,0.0039721,46828.0,46827.0,0.84910096]
[1641005656567,0.0039721,46828.0,46827.0,0.86919022]
[1641005657569,0.0039721,46828.0,46827.0,0.88911469]
[1641005657771,0.0039721,46828.0,46827.0,0.84759199]
[1641005658569,0.0039721,46828.0,46827.0,0.86818972]
[1641005659622,0.0039721,46828.0,46827.0,0.84842925]
[1641005660426,0.0039721,46828.0,46827.0,0.86863566]
[1641005660823,0.0039721,46828.0,46827.0,0.84787393]
[1641005661623,0.0039721,46828.0,46827.0,0.86917403]
[1641005661824,0.0039721,46828.0,46827.0,0.82766752]
[1641005662626,0.0039721,46828.0,46827.0,0.84958588]
[1641005663270,0.0039721,46828.0,46827.0,0.85018436]
[1641005663464,0.0039721,46828.0,46827.0,0.87112729]
[1641005663664,0.0039721,46828.0,46827.0,0.84920893]
[1641005664365,0.0039721,46828.0,46827.0,0.57462084]
[1641005664567,0.0039721,46828.0,46827.0,0.5954628]